{"text_format":"1","workbook":"xlsx","n_sheets":3,"sheets":["Deployment information","Predefined lists","Deployment file Ids "],"not_rendered":{"charts":0,"images":0,"macros":1,"external_links":0,"defined_names":15,"comments":0,"pivot_tables":0},"unopened":[],"bounds":{"document_bytes":16777216,"sheet_cells":100000,"rows_first":2000,"rows_last":500,"rows_between":2000,"halvings":0,"cell_chars":16384,"cell_head_chars":4096},"cells_cut":0,"cells_raw":0,"read":"whole","date_system":"1900"}

{"sheet":"Deployment information","index":0,"n_rows":149,"n_cols":22,"rows_kept":149,"cut":false,"hidden":false,"merged":[]}
["Id","SECTION","DIM LEVEL","KEY","VALUE","DEFAULT VALUE","UNIT","SHORT NAME","DESCRIPTION",null,null,null,null,null,"PLATFORM_CODE","TECH_PARAMETER_ID","DIM_LEVEL","PARAMETER_VALUE","TECH_PARAMETER_CODE"]
[201,null,null,null,null,null,null,null,null,null,null,null,null,null,{"$f":"$E$14","v":6903289}]
[201,"TITLE",1,"TITLE","NOVA Med. float",null,null,"Title of the deployment file",null,null,null,null,null,null,6903289,390,{"$f":"C3","v":1},{"$f":"IF(ISBLANK(E3),\"\",E3)","v":"NOVA Med. float"},"PLATFORM_MODEL"]
[201,null,null,null,null,null,null,null,null,null,null,null,null,null,6903289,null,null,{"$f":"IF(ISBLANK(E4),\"\",E4)","v":""}]
[201,"ARGO PROJECT INFORMATION",1,"PI_NAME","Dimitris Kassis",null,null,"Name of the Principal Investigator of the float",null,null,null,null,null,null,6903289,394,{"$f":"C5","v":1},"Dimitris Kassis","PI_NAME"]
[201,"ARGO PROJECT INFORMATION",1,"PROJECT_NAME","ARGO Greece",null,null,"Project name",null,null,null,null,null,null,6903289,15,1,"ARGO Greece","PR_EXPERIMENT_ID"]
[201,null,null,null,null,null,null,null,null,null,null,null,null,null,6903289,null,null,""]
[201,"PLATFORM INFORMATION",1,"PLATFORM_FAMILY","FLOAT",null,null,"Platform family",null,null,null,null,null,null,6903289,2081,1,"FLOAT","PLATFORM_FAMILY"]
[201,"PLATFORM INFORMATION",1,"PLATFORM_TYPE","NOVA",null,null,"Platform type",null,null,null,null,null,null,6903289,2209,1,"NOVA","PLATFORM_TYPE"]
[201,"PLATFORM INFORMATION",1,"PLATFORM_MAKER","METOCEAN",null,null,"Platform maker",null,null,null,null,null,null,6903289,391,1,"METOCEAN","PLATFORM_MAKER"]
[201,"PLATFORM INFORMATION",1,"BATTERY_TYPE","Lithium",null,null,"Type of the battery",null,null,null,null,null,null,6903289,1248,1,"Lithium","BATTERY_TYPE"]
[201,"PLATFORM INFORMATION",1,"BATTERY_PACKS","30 D Cell Li",null,null,"Configuration of battery packs",null,null,null,null,null,null,{"$f":"$E$14","v":6903289},1249,1,"30 D Cell Li","BATTERY_PACKS"]
[201,"PLATFORM INFORMATION",1,"FLOAT_SERIAL_NUMBER","0237",null,null,"Float serial number",null,null,null,null,null,null,6903289,392,1,"0237","INST_REFERENCE"]
[201,"PLATFORM INFORMATION",1,"WMO_NUMBER",6903289,null,null,"Float WMO number",null,null,null,null,null,null,{"$f":"$E$14","v":6903289},null,1,6903289]
[201,"PLATFORM INFORMATION",1,"IMEI",300234062950200,null,null,"Float Argos Id (decimal)",null,null,null,null,null,null,6903289,384,1,300234062950200,"PTT"]
[201,"PLATFORM INFORMATION",1,"BLUETOOTH_NUMBER",null,null,null,"Float bluetooth number",null,null,null,null,null,null,6903289,2085,1,"","BLUETOOTH_NUMBER"]
[201,"PLATFORM INFORMATION",1,"FIRMWARE_VERSION","1.4.5",null,null,"Float firmware version",null,null,null,null,null,null,6903289,961,1,"1.4.5","FIRMWARE_VERSION"]
[201,"PLATFORM INFORMATION",1,"CORIOLIS_DECODER_VERSION","1.0",null,null,"Coriolis decoder version",null,null,null,null,null,null,6903289,2,1,"1.0","PR_VERSION"]
[201,null,null,null,null,null,null,null,null,null,null,null,null,null,6903289]
[201,"DEPLOYMENT CHECKS",1,"DEPLOY_VISUAL_CHECK",null,null,null,"Comment after visual inspection of the float",null,null,null,null,null,null,6903289,2087,{"$f":"C20","v":1},{"$f":"IF(ISBLANK(E20),\"\",E20)","v":""},"DPLY_FLOAT_VISUAL_CHECK_CMT"]
[201,"DEPLOYMENT CHECKS",1,"DEPLOY_BALLAST_CHECK",null,null,null,"Comment after visual inspection of the ballast",null,null,null,null,null,null,6903289,2088,{"$f":"C21","v":1},{"$f":"IF(ISBLANK(E21),\"\",E21)","v":""},"DPLY_BALLAST_VISUAL_CHECK_CMT"]
[201,"DEPLOYMENT INFORMATION",1,"DEPLOY_MISSION",null,null,null,"Deployment mission name (cruise name)",null,null,null,null,null,null,6903289,429,1,null,"CRUISE_NAME"]
[201,"DEPLOYMENT INFORMATION",1,"DEPLOY_SHIP","R/V AEGAEO",null,null,"Deployment ship name",null,null,null,null,null,null,6903289,399,1,"R/V AEGAEO","DEPLOY_PLATFORM"]
[201,"DEPLOYMENT INFORMATION",1,"DEPLOY_PROFILE_DONE",null,null,null,"CTD or XBT profile done during deployment (yes/no)",null,null,null,null,null,null,6903289,401,1,null,"DEPLOY_AVAILABLE_PROFILE_ID"]
[201,"DEPLOYMENT INFORMATION",1,"DEPLOY_MAGNET_REMOVAL_TIME",null,null,null,"Magnet removal  time (dd/mm/yyyy hh:mm)",null,null,null,null,null,null,6903289,2089,1,null,"STARTUP_DATE"]
[201,"DEPLOYMENT INFORMATION",1,"DEPLOY_TIME","29/08/2020  00:30:00 ",null,null,"Deployment time ( dd/mm/yyyy hh:mm )",null,null,null,null,null,null,6903289,8,{"$f":"C26","v":1},"29/08/2020  00:30:00 ","PR_LAUNCH_DATETIME"]
[201,"DEPLOYMENT INFORMATION",1,"DEPLOY_LATITUDE",37.200000000000003,null,null,"Deployment latitude (dd°mm,mm N/S or dd°mm'ss\" N/S)",null,null,null,null,null,null,{"$f":"$E$14","v":6903289},9,1,null,"PR_LAUNCH_LATITUDE"]
[201,"DEPLOYMENT INFORMATION",1,"DEPLOY_LONGITUDE",23.87,null,null,"Deployment longitude  (ddd°mm,mm E/W or ddd°mm'ss\" E/W)",null,null,null,null,null,null,6903289,10,1,null,"PR_LAUNCH_LONGITUDE"]
[201,"DEPLOYMENT INFORMATION",1,"DEPLOY_BUOYANCY",null,null,null,"Buoyancy description",null,null,null,null,null,null,6903289,2096,1,null,"DPLY_BUOYANCY_DESCRIPTION"]
[201,"DEPLOYMENT INFORMATION",1,"DEPLOY_BATHYMETRY",900,null,null,"Bathymetry at deployment position(m)",null,null,null,null,null,null,6903289,290,1,900,"BATHY"]
[201,"DEPLOYMENT INFORMATION",1,"DEPLOY_OPERATOR_NAME","Dimitris Kassis",null,null,"Name of the operator in charge of the deployment",null,null,null,null,null,null,6903289,2097,1,"Dimitris Kassis","DPLY_OPERATOR_NAME"]
[201,"DEPLOYMENT INFORMATION",1,"DEPLOY_METHOD","Rope",null,null,"Deployment method (release box, manual, expendable cardboard, etc…)",null,null,null,null,null,null,6903289,2098,1,"Rope","DPLY_METHOD"]
[201,"DEPLOYMENT INFORMATION",1,"DEPLOY_METEOROLOGY",null,null,null,"Meteorology",null,null,null,null,null,null,6903289,1352,{"$f":"C33","v":1},null,"METEOROLOGY"]
[201,"DEPLOYMENT INFORMATION",1,"DEPLOY_NB_DAYS_UNTIL_FIRST_ASCENDING_PROFILE",0,null,null,"Number of days until the first ascending profile (copy of the PM2 parameter value)",null,null,null,null,null,null,6903289,null,{"$f":"C34","v":1},0]
[201,"DEPLOYMENT INFORMATION",1,"DEPLOY_COMMENT",null,null,null,"Miscellaneous comment on the deployment",null,null,null,null,null,null,6903289,2099,1,null,"DPLY_CMT"]
[201,null,null,"           ",null,null,null,null,null,null,null,null,null,null,6903289]
[201,"SENSOR INFORMATION",1,"SENSOR","CTD_PRES",null,null,"Sensor name",null,null,null,null,null,null,6903289,408,{"$f":"C37","v":1},{"$f":"IF(ISBLANK(E37),\"\",E37)","v":"CTD_PRES"},"SENSOR"]
[201,"SENSOR INFORMATION",1,"SENSOR_MAKER","SBE",null,null,"Sensor manufacturer",null,null,null,null,null,null,6903289,409,1,"SBE","SENSOR_MAKER"]
[201,"SENSOR INFORMATION",1,"SENSOR_MODEL","SBE41CP",null,null,"Sensor model",null,null,null,null,null,null,6903289,410,1,"SBE41CP","SENSOR_MODEL"]
[201,"SENSOR INFORMATION",1,"SENSOR_SERIAL_NUMBER",4645089,null,null,"Sensor serial number",null,null,null,null,null,null,6903289,411,1,4645089,"SENSOR_SERIAL_NO"]
[201,"SENSOR INFORMATION",2,"SENSOR","CTD_TEMP",null,null,"Sensor name",null,null,null,null,null,null,6903289,408,2,"CTD_TEMP","SENSOR"]
[201,"SENSOR INFORMATION",2,"SENSOR_MAKER","SBE",null,null,"Sensor manufacturer",null,null,null,null,null,null,6903289,409,2,"SBE","SENSOR_MAKER"]
[201,"SENSOR INFORMATION",2,"SENSOR_MODEL","SBE41CP",null,null,"Sensor model",null,null,null,null,null,null,6903289,410,2,"SBE41CP","SENSOR_MODEL"]
[201,"SENSOR INFORMATION",2,"SENSOR_SERIAL_NUMBER",7149,null,null,"Sensor serial number",null,null,null,null,null,null,6903289,411,2,7149,"SENSOR_SERIAL_NO"]
[201,"SENSOR INFORMATION",3,"SENSOR","CTD_CNDC",null,null,"Sensor name",null,null,null,null,null,null,6903289,408,3,"CTD_CNDC","SENSOR"]
[201,"SENSOR INFORMATION",3,"SENSOR_MAKER","SBE",null,null,"Sensor manufacturer",null,null,null,null,null,null,6903289,409,3,"SBE","SENSOR_MAKER"]
[201,"SENSOR INFORMATION",3,"SENSOR_MODEL","SBE41CP",null,null,"Sensor model",null,null,null,null,null,null,6903289,410,3,"SBE41CP","SENSOR_MODEL"]
[201,"SENSOR INFORMATION",3,"SENSOR_SERIAL_NUMBER",7149,null,null,"Sensor serial number",null,null,null,null,null,null,6903289,411,3,7149,"SENSOR_SERIAL_NO"]
[201,null,null,null,null,null,null,null,null,null,null,null,null,null,6903289]
[201,"PARAMETER INFORMATION",1,"PARAMETER","PRES",null,null,"Parameter name",null,null,null,null,null,null,{"$f":"$E$14","v":6903289},415,{"$f":"C50","v":1},"PRES","PARAMETER"]
[201,"PARAMETER INFORMATION",1,"PARAMETER_SENSOR","CTD_PRES",null,null,"Name of the sensor that measures the parameter",null,null,null,null,null,null,6903289,2100,{"$f":"C51","v":1},{"$f":"IF(ISBLANK(E51),\"\",E51)","v":"CTD_PRES"},"PARAMETER_SENSOR"]
[201,"PARAMETER INFORMATION",1,"PARAMETER_UNITS","decibar",null,null,"Units of accuracy and resolution of the parameter",null,null,null,null,null,null,6903289,2206,{"$f":"C52","v":1},{"$f":"IF(ISBLANK(E52),\"\",E52)","v":"decibar"},"PARAMETER_UNITS"]
[201,"PARAMETER INFORMATION",1,"PARAMETER_ACCURACY",2.4,null,null,"Accuracy of the parameter",null,null,null,null,null,null,6903289,2207,1,{"$f":"IF(ISBLANK(E53),\"\",E53)","v":2.4},"PARAMETER_ACCURACY"]
[201,"PARAMETER INFORMATION",1,"PARAMETER_RESOLUTION",0.1,null,null,"Resolution of the parameter",null,null,null,null,null,null,6903289,2208,1,{"$f":"IF(ISBLANK(E54),\"\",E54)","v":0.1},"PARAMETER_RESOLUTION"]
[201,"PARAMETER INFORMATION",1,"PREDEPLOYMENT_CALIB_EQUATION",null,null,null,"Calibration equation for this parameter",null,null,null,null,null,null,6903289,416,1,"","PREDEPLOYMENT_CALIB_EQUATION"]
[201,"PARAMETER INFORMATION",1,"PREDEPLOYMENT_CALIB_COEFFICIENT",null,null,null,"Calibration coefficients for this equation",null,null,null,null,null,null,6903289,417,1,"","PREDEPLOYMENT_CALIB_COEFFICIENT"]
[201,"PARAMETER INFORMATION",1,"PREDEPLOYMENT_CALIB_COMMENT",null,null,null,"Comments applying to this parameter calibration",null,null,null,null,null,null,6903289,418,1,{"$f":"IF(ISBLANK(E57),\"\",E57)","v":""},"PREDEPLOYMENT_CALIB_COMMENT"]
[201,"PARAMETER INFORMATION",2,"PARAMETER","TEMP",null,null,"Parameter name",null,null,null,null,null,null,6903289,415,2,{"$f":"IF(ISBLANK(E58),\"\",E58)","v":"TEMP"},"PARAMETER"]
[201,"PARAMETER INFORMATION",2,"PARAMETER_SENSOR","CTD_TEMP",null,null,"Name of the sensor that measures the parameter",null,null,null,null,null,null,6903289,2100,2,"CTD_TEMP","PARAMETER_SENSOR"]
[201,"PARAMETER INFORMATION",2,"PARAMETER_UNITS","degree_Celsius",null,null,"Units of accuracy and resolution of the parameter",null,null,null,null,null,null,6903289,2206,2,"degree_Celsius","PARAMETER_UNITS"]
[201,"PARAMETER INFORMATION",2,"PARAMETER_ACCURACY",2E-3,null,null,"Accuracy of the parameter",null,null,null,null,null,null,6903289,2207,2,{"$f":"IF(ISBLANK(E61),\"\",E61)","v":2E-3},"PARAMETER_ACCURACY"]
[201,"PARAMETER INFORMATION",2,"PARAMETER_RESOLUTION",1E-3,null,null,"Resolution of the parameter",null,null,null,null,null,null,6903289,2208,2,{"$f":"IF(ISBLANK(E62),\"\",E62)","v":1E-3},"PARAMETER_RESOLUTION"]
[201,"PARAMETER INFORMATION",2,"PREDEPLOYMENT_CALIB_EQUATION",null,null,null,"Calibration equation for this parameter",null,null,null,null,null,null,6903289,416,2,{"$f":"IF(ISBLANK(E63),\"\",E63)","v":""},"PREDEPLOYMENT_CALIB_EQUATION"]
[201,"PARAMETER INFORMATION",2,"PREDEPLOYMENT_CALIB_COEFFICIENT",null,null,null,"Calibration coefficients for this equation",null,null,null,null,null,null,6903289,417,2,"","PREDEPLOYMENT_CALIB_COEFFICIENT"]
[201,"PARAMETER INFORMATION",2,"PREDEPLOYMENT_CALIB_COMMENT",null,null,null,"Comments applying to this parameter calibration",null,null,null,null,null,null,6903289,418,2,{"$f":"IF(ISBLANK(E65),\"\",E65)","v":""},"PREDEPLOYMENT_CALIB_COMMENT"]
[201,"PARAMETER INFORMATION",3,"PARAMETER","PSAL",null,null,"Parameter name",null,null,null,null,null,null,6903289,415,3,"PSAL","PARAMETER"]
[201,"PARAMETER INFORMATION",3,"PARAMETER_SENSOR","CTD_CNDC",null,null,"Name of the sensor that measures the parameter",null,null,null,null,null,null,6903289,2100,3,{"$f":"IF(ISBLANK(E67),\"\",E67)","v":"CTD_CNDC"},"PARAMETER_SENSOR"]
[201,"PARAMETER INFORMATION",3,"PARAMETER_UNITS","psu",null,null,"Units of accuracy and resolution of the parameter",null,null,null,null,null,null,6903289,2206,3,"psu","PARAMETER_UNITS"]
[201,"PARAMETER INFORMATION",3,"PARAMETER_ACCURACY",5.0000000000000001E-3,null,null,"Accuracy of the parameter",null,null,null,null,null,null,6903289,2207,3,{"$f":"IF(ISBLANK(E69),\"\",E69)","v":5.0000000000000001E-3},"PARAMETER_ACCURACY"]
[201,"PARAMETER INFORMATION",3,"PARAMETER_RESOLUTION",1E-3,null,null,"Resolution of the parameter",null,null,null,null,null,null,6903289,2208,3,{"$f":"IF(ISBLANK(E70),\"\",E70)","v":1E-3},"PARAMETER_RESOLUTION"]
[201,"PARAMETER INFORMATION",3,"PREDEPLOYMENT_CALIB_EQUATION",null,null,null,"Calibration equation for this parameter",null,null,null,null,null,null,6903289,416,3,{"$f":"IF(ISBLANK(E71),\"\",E71)","v":""},"PREDEPLOYMENT_CALIB_EQUATION"]
[201,"PARAMETER INFORMATION",3,"PREDEPLOYMENT_CALIB_COEFFICIENT",null,null,null,"Calibration coefficients for this equation",null,null,null,null,null,null,6903289,417,3,"","PREDEPLOYMENT_CALIB_COEFFICIENT"]
[201,"PARAMETER INFORMATION",3,"PREDEPLOYMENT_CALIB_COMMENT",null,null,null,"Comments applying to this parameter calibration",null,null,null,null,null,null,6903289,418,{"$f":"C73","v":3},{"$f":"IF(ISBLANK(E73),\"\",E73)","v":""},"PREDEPLOYMENT_CALIB_COMMENT"]
[201,null,null,null,null,null,null,null,null,null,null,null,null,null,6903289]
[201,"MISSION CONFIGURATION PARAMETERS",1,"PM00",5,10,"day","Cycle Period","The duration of one cycle of descent, submerged drift, ascent and transmission. The NOVA Profiling Float waits submerged at the parking depth for as long as necessary to make the cycle the selected duration.",null,null,null,null,null,{"$f":"$E$14","v":6903289},4,1,5,"PR_CYCLE_PERIOD"]
[201,"MISSION CONFIGURATION PARAMETERS",1,"PM01",255,255,"-","Number of Cycles","This is the number of cycles of descent, submerged drift, ascent and transmission that NOVA will perform. The mission ends and NOVA enters Life Expiry mode when this number of cycles has been completed. Note: when PARAM 1 = 255 the number of cycles is infinite.",null,null,null,null,null,6903289,2063,1,255,"CONFIG_MaxCycles_NUMBER"]
[201,"MISSION CONFIGURATION PARAMETERS",1,"PM02",3,"-","hour","Ascent Time","GMT hour of the day to begin ascent profiles, according to 24-hour clock.",null,null,null,null,null,6903289,2146,1,3,"PRCFG_Start_time"]
[201,"MISSION CONFIGURATION PARAMETERS",1,"PM03",10,10,"second","Ascent Sampling Period","The time interval between successive measurements during ascent.",null,null,null,null,null,6903289,1355,1,{"$f":"IF(ISBLANK(E78),\"\",E78)","v":10},"ASC_PROFILE_PERIOD"]
[201,"MISSION CONFIGURATION PARAMETERS",1,"PM04",0,0,"second","Descent Sampling Period","The time interval between successive measurements during descent.",null,null,null,null,null,6903289,1354,{"$f":"C79","v":1},0,"DESC_PROFILE_PERIOD"]
[201,"MISSION CONFIGURATION PARAMETERS",1,"PM05",24,24,"hour","Parking Sampling Period","The time interval between successive measurements during NOVA’s stay at the drift depth.",null,null,null,null,null,6903289,7,1,{"$f":"IF(ISBLANK(E80),\"\",E80*60)","v":1440},"PR_IMMERSION_DRIFT_PERIOD"]
[201,"MISSION CONFIGURATION PARAMETERS",1,"PM06",350,1000,"dbar","Parking Depth","The depth at which NOVA drifts after completion of a descent while awaiting the time scheduled for the beginning of the next ascent.",null,null,null,null,null,6903289,425,1,{"$f":"IF(ISBLANK(E81),\"\",E81)","v":350},"PARKING_PRESSURE"]
[201,"MISSION CONFIGURATION PARAMETERS",1,"PM07",1000,2000,"dbar","Profile Depth","Depth to begin an ascending profile. If NOVA is drifting at some shallower depth, it will first descend to the profile depth before starting the ascent profile.",null,null,null,null,null,6903289,426,1,1000,"DEEPEST_PRESSURE"]
[201,"MISSION CONFIGURATION PARAMETERS",1,"PM08",7,6,"hour","Duration from Parking to Profile Depth","The number of hours before the Ascent time (PARAM 2) that parking will end.",null,null,null,null,null,6903289,2147,1,7,"DEEP_PROFILE_DESCENT_DELAY"]
[201,"MISSION CONFIGURATION PARAMETERS",1,"PM09",5,5,"dbar","Depth Interval for CTD Data Reduction","The target depth interval between final CTD samples. A small interval gives a more highly resolved profile and larger messages.",null,null,null,null,null,6903289,2325,1,5,"ProfileDepthInterval"]
[201,"MISSION CONFIGURATION PARAMETERS",1,"PM10","UNUSED",null,null,null,null,null,null,null,null,null,6903289,null,1,"UNUSED"]
[201,"MISSION CONFIGURATION PARAMETERS",1,"PM11","UNUSED",null,null,null,null,null,null,null,null,null,6903289,null,1,"UNUSED"]
[201,"MISSION CONFIGURATION PARAMETERS",1,"PM12",15,15,"minute","Delay Before Mission","The time delay between activation and the float becoming operational on its mission.",null,null,null,null,null,6903289,1353,1,15,"DELAY_BEFORE_MISSION"]
[201,"MISSION CONFIGURATION PARAMETERS",1,"PM13",30,30,"minute","End of Life Message Interval","The interval between housekeeping messages at the end-of-life.",null,null,null,null,null,6903289,1464,1,30,"EndOfLifeTransPeriod"]
[201,"MISSION CONFIGURATION PARAMETERS",1,"PM14",0,0,"internal day number","Reference Day","Set this to zero (0) to set an immediate profile post deployment, after which the cycle period applies.",null,null,null,null,null,6903289,353,1,{"$f":"IF(ISBLANK(E89),\"\",E89)","v":0},"PRCFG_Reference_day"]
[201,null,null,null,null,null,null,null,null,null,null,null,null,null,6903289,null,null,""]
[201,"MISSION TECHNICAL PARAMETERS",1,"PH0","UNUSED",0,"second","Mission timeout","Mission timeout (0 means disabled)",null,null,null,null,null,6903289,null,{"$f":"C91","v":1},{"$f":"IF(ISBLANK(E91),\"\",E91)","v":"UNUSED"}]
[201,"MISSION TECHNICAL PARAMETERS",1,"PH01",200,200,"dsec","Max valve duration at surface","Maximum duration of valve at surface",null,null,null,null,null,6903289,926,1,{"$f":"IF(ISBLANK(E92),\"\",E92)","v":200},"PRCFG_Surf_valve_max_duration"]
[201,"MISSION TECHNICAL PARAMETERS",1,"PH02",15,15,"cm3","Max oil transfered during descent","Maximum of oil volume transfered via the valve during descent",null,null,null,null,null,6903289,927,1,15,"PRCFG_Depth_valve_max_volume"]
[201,"MISSION TECHNICAL PARAMETERS",1,"PH03",1,1,"cm3","Min oil transfered during descent","Minimum of oil volume transfered via the valve during descent",null,null,null,null,null,6903289,2326,1,1,"PRCFG_Depth_valve_min_volume"]
[201,"MISSION TECHNICAL PARAMETERS",1,"PH04",100,100,"dsec","Max pump for depth correction","Maximum pump activation during depth correction",null,null,null,null,null,6903289,928,1,100,"PRCFG_Depth_pump_max_duration"]
[201,"MISSION TECHNICAL PARAMETERS",1,"PH05",200,200,"dsec","Pump action duration during ascent","Max value of pump activation during ascending profile",null,null,null,null,null,6903289,929,1,200,"PRCFG_Asc_pump_max_duration"]
[201,"MISSION TECHNICAL PARAMETERS",1,"PH06",600,600,"dsec","Pump action duration at surface","Pump activation at surface after emptying the reservoir",null,null,null,null,null,6903289,930,1,600,"PRCFG_Surf_pump_duration"]
[201,"MISSION TECHNICAL PARAMETERS",1,"PH07",3,3,"minute","Delay after ascent end threshold","Waiting delay after end of ascent pressure threshold was reached",null,null,null,null,null,6903289,2327,1,3,"TimeDelayAfterAET"]
[201,"MISSION TECHNICAL PARAMETERS",1,"PH08",9000,9000,"dsec","Max pump duration at surface","Pump activation required to empty the reservoir",null,null,null,null,null,6903289,2328,1,9000,"PumpActionTimeEmptyReservoir"]
[201,"MISSION TECHNICAL PARAMETERS",1,"PH09",1,1,"minute","Float control sampling period - ascent","Pressure sampling period during ascent",null,null,null,null,null,6903289,2154,1,1,"VECTOR_ASCEND_SAMPLING_PERIOD"]
[201,"MISSION TECHNICAL PARAMETERS",1,"PH10",1,1,"minute","Float control sampling period - surface","Pressure sampling period at surface",null,null,null,null,null,6903289,2155,1,1,"VECTOR_SURFACE_SAMPLING_PERIOD"]
[201,"MISSION TECHNICAL PARAMETERS",1,"PH11",5,5,"minute","Float control sampling period - descent","Pressure sampling period during descent",null,null,null,null,null,6903289,2260,1,5,"VECTOR_DESCEND_SAMPLING_PERIOD"]
[201,"MISSION TECHNICAL PARAMETERS",1,"PH12",10,10,"minute","Float control sampling period - parking","Pressure sampling period during parking",null,null,null,null,null,6903289,2329,1,10,"VECTOR_PARK_SAMPLING_PERIOD"]
[201,"MISSION TECHNICAL PARAMETERS",1,"PH13",0,0,"minute","Float control sampling period - stabilization","Pressure sampling period during stabilization phase",null,null,null,null,null,6903289,2330,1,0,"VECTOR_STAB_SAMPLING_PERIOD"]
[201,"MISSION TECHNICAL PARAMETERS",1,"PH14",25,25,"dbar","Parking depth tolerance for stabilization","Error on pressure target when positioning at parking",null,null,null,null,null,6903289,2331,1,25,"TargetToleranceForStabParkDepth"]
[201,"MISSION TECHNICAL PARAMETERS",1,"PH15",1,1,"-","Nb samples out of tolerance for repositioning","Maximum number of pressure samples out of the tolerance before repositioning",null,null,null,null,null,6903289,935,1,1,"PRCFG_Gap_order_delta_position"]
[201,"MISSION TECHNICAL PARAMETERS",1,"PH16",100,100,"dbar","Parking depth tolerance for repositioning","Pressure tolerance around parking",null,null,null,null,null,6903289,2332,1,100,"TargetToleranceForDriftParkDepth"]
[201,"MISSION TECHNICAL PARAMETERS",1,"PH17",2100,2100,"dbar","Emergency ascent pressure","Emergency ascent pressure threshold",null,null,null,null,null,6903289,932,1,2100,"PRCFG_Max_pressure"]
[201,"MISSION TECHNICAL PARAMETERS",1,"PH18",8,8,"dbar","Buoyancy reduction second threshold","Pressure threshold between surface and descent phases",null,null,null,null,null,6903289,934,1,8,"PRCFG_Descent_start_pressure"]
[201,"MISSION TECHNICAL PARAMETERS",1,"PH19",0,0,"-","Grounding mode","Grounding mode",null,null,null,null,null,6903289,936,1,0,"PRCFG_Grounded_mode"]
[201,"MISSION TECHNICAL PARAMETERS",1,"PH20",300,300,"-","Surface grounding criteria","Maximum number of valve activation before grounding detection at surface",null,null,null,null,null,6903289,2333,1,300,"ValveActionsForSurfaceGrounding"]
[201,"MISSION TECHNICAL PARAMETERS",1,"PH21",100,100,"cm3","Deep grounding criteria","Cumulated oil transfer without moving using the valve before grounding detection during descent",null,null,null,null,null,6903289,938,1,100,"PRCFG_Grounded_waiting_pres"]
[201,"MISSION TECHNICAL PARAMETERS",1,"PH22",200,200,"dbar","Shallowest pressure to apply first grounding mode","Grounding pressure threshold before depth correction is applied",null,null,null,null,null,6903289,937,1,200,"PRCFG_Grounded_volume"]
[201,"MISSION TECHNICAL PARAMETERS",1,"PH23",50,50,"dbar","Pressure correction for first grounding mode","Pressure correction when grounding",null,null,null,null,null,6903289,939,1,50,"PRCFG_Grounded_reduction_pres"]
[201,"MISSION TECHNICAL PARAMETERS",1,"PH24",5,5,"dbar","CTD profile depth interval","Depth interval used to filter CTD profile",null,null,null,null,null,6903289,null,1,5]
[201,"MISSION TECHNICAL PARAMETERS",1,"PH25",900,900,"second","GPS timeout","GPS timeout",null,null,null,null,null,6903289,2334,1,900,"GPSTimeout"]
[201,"MISSION TECHNICAL PARAMETERS",1,"PH26",20,20,"dbar","Profile depth tolerance for stabilization","Error on pressure target when positioning at profile depth",null,null,null,null,null,6903289,2335,1,20,"TargetToleranceForStabProfDepth"]
[201,"MISSION TECHNICAL PARAMETERS",1,"PH27",20,20,"dbar","Profile depth tolerance for repositioning","Pressure tolerance around parking at profile depth",null,null,null,null,null,6903289,2336,1,20,"TargetToleranceForDriftProfDepth"]
[201,"MISSION TECHNICAL PARAMETERS",1,"PH28",0,0,"-","Sensor type","Sensor type (0: SBE41CP, 1: SBE41CP-DO)",null,null,null,null,null,6903289,null,1,0]
[201,"MISSION TECHNICAL PARAMETERS",1,"PH29",20,10,"cbar","Top bin interval","Top bin interval",null,null,null,null,null,6903289,2337,1,20,"ProfileSurfaceBinInterval"]
[201,"MISSION TECHNICAL PARAMETERS",1,"PH30",1000,980,"cbar","Top bin size","Top bin size",null,null,null,null,null,6903289,1358,1,1000,"SURF_SLICE_THICKNESS"]
[201,"MISSION TECHNICAL PARAMETERS",1,"PH31",1000,1000,"cbar","Top bin max","Top bin max",null,null,null,null,null,6903289,1356,1,1000,"INT_SURF_THRESHOLD"]
[201,"MISSION TECHNICAL PARAMETERS",1,"PH32",100,25,"cbar","Middle bin interval","Middle bin interval",null,null,null,null,null,6903289,2338,{"$f":"C123","v":1},100,"ProfileMiddleBinInterval"]
[201,"MISSION TECHNICAL PARAMETERS",1,"PH33",6000,3975,"cbar","Middle bin size","Middle bin size",null,null,null,null,null,6903289,1359,1,6000,"INT_SLICE_THICKNESS"]
[201,"MISSION TECHNICAL PARAMETERS",1,"PH34",5000,5000,"cbar","Middle bin max","Middle bin max",null,null,null,null,null,6903289,1357,{"$f":"C125","v":1},{"$f":"IF(ISBLANK(E125),\"\",E125)","v":5000},"DEPTH_INT_THRESHOLD"]
[201,"MISSION TECHNICAL PARAMETERS",1,"PH35",250,50,"cbar","Bottom bin interval","Bottom bin interval",null,null,null,null,null,6903289,2339,1,250,"ProfileBottomBinInterval"]
[201,"MISSION TECHNICAL PARAMETERS",1,"PH36",13000,14950,"cbar","Bottom bin size","Bottom bin size",null,null,null,null,null,6903289,1360,1,13000,"DEPTH_SLICE_THICKNESS"]
[201,"MISSION TECHNICAL PARAMETERS",1,"PH37",0,0,"-","Transition bins enable","Transition bins enable (0: disable, 1: enable)",null,null,null,null,null,6903289,2340,1,0,"ProfileIncludeTransitionBins"]
[201,"MISSION TECHNICAL PARAMETERS",1,"PH38",0,0,"-","Data reduction type","Data reduction type (0: bin method, 1: pressure point selection method)",null,null,null,null,null,6903289,2341,1,0,"ProfileSamplingMethod"]
[201,null,null,null,null,null,null,null,null,null,null,null,null,null,6903289,null,null,""]
[201,null,null,null,null,null,null,null,null,null,null,null,null,null,{"$f":"$E$14","v":6903289},1243,1,{"$f":"MID(R15,9,6)","v":"295020"},"IMEI"]
[201,null,null,null,null,null,null,null,null,null,null,null,null,null,6903289,13,1,865,"PR_PROBE_CODE"]
[201,null,null,null,null,null,null,null,null,null,null,null,null,null,6903289,14,1,64,"PR_RECORDER_CODE"]
[201,null,null,null,null,null,null,null,null,null,null,null,null,null,6903289,376,1,"IF","DATA_CENTRE"]
[201,null,null,null,null,null,null,null,null,null,null,null,null,null,6903289,377,1,"GPS","POSITIONING_SYSTEM"]
[201,null,null,null,null,null,null,null,null,null,null,null,null,null,6903289,377,2,"IRIDIUM","POSITIONING_SYSTEM"]
[201,null,null,null,null,null,null,null,null,null,null,null,null,null,6903289,385,1,"IRIDIUM","TRANS_SYSTEM"]
[201,null,null,null,null,null,null,null,null,null,null,null,null,null,6903289,393,1,"B","DIRECTION"]
[201,null,null,null,null,null,null,null,null,null,null,null,null,null,6903289,396,1,1,"LAUNCH_QC"]
[201,null,null,null,null,null,null,null,null,null,null,null,null,null,6903289,398,1,1,"START_DATE_QC"]
[201,null,null,null,null,null,null,null,null,null,null,null,null,null,6903289,419,1,1,"REPETITION_RATE"]
[201,null,null,null,null,null,null,null,null,null,null,null,null,null,6903289,420,1,{"$f":"IF(ISBLANK(R75),\"\",R75*24)","v":120},"CYCLE_TIME",null,null,"PR_CYCLE_PERIOD en heures"]
[201,null,null,null,null,null,null,null,null,null,null,null,null,null,6903289,17,1,{"$f":"IF(ISBLANK(R81),\"\",R81)","v":350},"PR_PARKING_DEPTH",null,null,"idem PARKING_PRESSURE"]
[201,null,null,null,null,null,null,null,null,null,null,null,null,null,6903289,18,1,{"$f":"IF(ISBLANK(R82),\"\",R82)","v":1000},"PR_PROFILE_DEPTH",null,null,"idem DEEPEST_PRESSURE"]
[201,null,null,null,null,null,null,null,null,null,null,null,null,null,6903289,482,1,"2020-09-18T21:00:00","METADATA_DATE_UPDATE",null,null,"date courante sans les MM:SS + 5 heures (mis à jour lors de la validation ou sauvegarde)"]
[201,null,null,null,null,null,null,null,null,null,null,null,null,null,6903289,573,1,1.2,"HANDBOOK_VERSION"]
[201,null,null,null,null,null,null,null,null,null,null,null,null,null,6903289,397,1,{"$f":"IF(ISBLANK(R25),\"\",IF(R87=\"\",\"\",(R25+(R87/1440))))","v":""},"START_DATE",null,null," = startup_date + DELAY_BEFORE_MISSION/1440"]
[201,null,null,null,null,null,null,null,null,null,null,null,null,null,6903289,1361,1,2,"PRES_SBE_PUMP_SWITCH_OFF"]
[201,null,null,null,null,null,null,null,null,null,null,null,null,null,6903289,1,1,"NOVA","PR_TYPE"]

{"sheet":"Predefined lists","index":1,"n_rows":102,"n_cols":41,"rows_kept":102,"cut":false,"hidden":false,"merged":[]}
["PLATFORM_FAMILY","DEFINITION",null,"PLATFORM_TYPE","DEFINITION",null,"PLATFORM_MAKER","DEFINITION",null,"SENSOR","DEFINITION",null,"SENSOR_MAKER","DEFINITION",null,"SENSOR_MODEL","DEFINITION",null,"SEL_VERSION","DEFINITION",null,"SEL_Y_N","DEFINITION",null,"SEL_OK","DEFINITION",null,"BATTERY_TYPE","DEFINITION",null,"PROBE_CODE","DEFINITION",null,"RECORDER_CODE","DEFINITION",null,"PARAMETER","long_name","cf standard_name","unit","type"]
["FLOAT","Profiling float",null,"PALACE","Webb Research Corporation – first Argo float model from them",null,"MARTEC","Martec",null,"ACOUSTIC",null,null,"AANDERAA",null,null,"UNKNOWN","to use when necessary",null,null,null,null,null,null,null,null,null,null,"Alkaline",null,null,1,"Sippican T-4",null,1,"Sippican strip chart recorder",null,"CNDC","Electrical conductivity","sea_water_electrical_conductivity","mhos/m","c"]
["FLOAT_COASTAL","Coastal float, i.e. ARVOR-C ",null,"APEX","Webb Research Corporation/Teledyne Webb  APEX float",null,"METOCEAN","MetOcean",null,"ACOUSTIC_GEOLOCATION",null,null,"AMETEK",null,null,"FSI",null,null,"1.0","NOVA",null,"yes",null,null,"OK",null,null,"Lithium",null,null,2,"Sippican T-4",null,2,"Sippican MK2A/SSQ-61",null,"PRES","Sea water pressure, equals 0 at sea-level ","sea_water_pressure","decibar","c"]
["FLOAT_DEEP","Profiling Float that is capable of profiling deeper than 2000 dbar",null,"APEX_EM","Webb Research Corporation/Teledyne Webb  APEX ElectroMagnetic float (measures velocity and mixing)",null,"MRV","MRV Systems",null,"CTD_PRES",null,null,"DRUCK",null,null,"SBE",null,null,null,null,null,"no",null,null,null,null,null,"Alkaline and Lithium",null,null,11,"Sippican T-5",null,3,"Sippican MK-9",null,"PSAL","Practical salinity","sea_water_salinity","psu","c"]
["POLAR_OCEAN_PROFILING_SYSTEM","Ice platform that provides meteorological data is paired with a subsurface platform, either a PROVOR CTS-3 or NEMO float tethered along a cable that uses buoyancy to go up and down.",null,"APEX_D","Teledyne Webb  deep profiling APEX float",null,"NKE","NKE Instrumentation",null,"CTD_TEMP",null,null,"FSI",null,null,"SBE37",null,null,null,null,null,null,null,null,null,null,null,null,null,null,21,"Sippican Fast Deep",null,4,"Sippican AN/BHQ-7/MK8",null,"TEMP","Sea temperature in-situ ITS-90 scale","sea_water_temperature","degree_Celsius","c"]
["ICE_TETHERED_PROFILER","Surface ice mounted platform that provides meteorological data and subsurface profiler tethered to a cable that uses a motor to go up and down.",null,"APEX_C","Not yet manufactured",null,"OPTIMARE","Optimare",null,"CTD_CNDC",null,null,"KISTLER",null,null,"SBE41",null,null,null,null,null,null,null,null,null,null,null,null,null,null,31,"Sippican T-6",null,5,"Sippican MK-12",null,"DOXY","Dissolved oxygen","moles_of_oxygen_per_unit_mass_in_sea_water","micromole/kg","b"]
[null,null,null,"PROVOR_MT","Metocean PROVOR float",null,"SBE","Seabird",null,"EM",null,null,"PAINE",null,null,"SBE41_V2.5",null,null,null,null,null,null,null,null,null,null,null,null,null,null,32,"Sippican T-6",null,6,"Sippican MK-21",null,"TURBIDITY","Sea water turbidity","sea_water_turbidity","ntu","b"]
[null,null,null,"PROVOR","PROVOR float sold by MARTEC or NKE",null,"SIO_IDG","Scripps Institution of Oceanography – Instrument Development Group",null,"FLUOROMETER_CDOM",null,null,"SBE",null,null,"SBE41_V2.6",null,null,null,null,null,null,null,null,null,null,null,null,null,null,41,"Sippican T-7",null,7,"Sippican MK-8 Linear Recorder",null,"CHLA","Chlorophyll-A","mass_concentration_of_chlorophyll_a_in_sea_water","mg/m3","b"]
[null,null,null,"ARVOR","NKE ARVOR float",null,"TSK","Tsurumi-Seiki Co., Ltd.",null,"FLUOROMETER_CHLA",null,null,"SEASCAN",null,null,"SBE41_V3",null,null,null,null,null,null,null,null,null,null,null,null,null,null,42,"Sippican T-7",null,8,"Sippican MK-10",null,"CDOM","Concentration of coloured dissolved organic matter in sea water","-","ppb","b"]
[null,null,null,"PROVOR_II","NKE dual board PROVOR float",null,"TWR","Teledyne Webb Research (formerly Webb Research Corporation)",null,"IDO_DOXY",null,null,"WETLABS","Wetlabs Inc.",null,"SBE41CP",null,null,null,null,null,null,null,null,null,null,null,null,null,null,51,"Sippican Deep Blue",null,10,"Sparton SOC BT/SV Processor Model 100",null,"NITRATE","Nitrate","moles_of_nitrate_per_unit_mass_in_sea_water","micromoles/kg ","b"]
[null,null,null,"PROVOR_III","NKE dual board PROVOR float new generation",null,"WHOI","Woods Hole Oceanographic Institution",null,"OPTODE_DOXY",null,null,"MBARI","Monterey Bay Aquarium Research Institute",null,"SBE41_IDO_V1.0c","Seabird CTD module with IDO oxygen sensor",null,null,null,null,null,null,null,null,null,null,null,null,null,52,"Sippican Deep Blue",null,11,"Lockheed-Sanders Model OL5005",null,"BISULFIDE","Bisulfide","-","micromoles/kg ","b"]
[null,null,null,"ARVOR_C","Coastal ARVOR float",null,"WRC","Webb Research Corporation",null,"RADIOMETER_DOWN_IRR380","Radiometer measuring downwelling irradiance at wavelength <nnn> specified in Table 3 BGC-Argo parameters list",null,"SATLANTIC",null,null,"SBE41_IDO_V2.0","Seabird CTD module with IDO oxygen sensor",null,null,null,null,null,null,null,null,null,null,null,null,null,61,"Sippican T-10",null,20,"Argos XBT-ST",null,"PH_IN_SITU_TOTAL","pH","sea_water_ph_reported_on_total_scale","dimensionless","b"]
[null,null,null,"ARVOR_D","Deep profiling NKE ARVOR float",null,null,null,null,"RADIOMETER_DOWN_IRR412","Radiometer measuring downwelling irradiance at wavelength <nnn> specified in Table 3 BGC-Argo parameters list",null,"JAC","JFE Advantech Co., Ltd",null,"SBE41CP_IDO_V2.0b","Seabird CTD module with IDO oxygen sensor",null,null,null,null,null,null,null,null,null,null,null,null,null,71,"Sippican T-11",null,21,"CLS-ARGOS / Protecno XBT-ST Model-1",null,"TEMP_DOXY","Sea temperature from oxygene sensor ITS-90 scale","temperature_of_sensor_for_oxygen_in_sea_water","degree_Celsius","i"]
[null,null,null,"SOLO","Scripps Institution of Oceanography – Instrument Development Group SOLO float",null,null,null,null,"RADIOMETER_DOWN_IRR490","Radiometer measuring downwelling irradiance at wavelength <nnn> specified in Table 3 BGC-Argo parameters list",null,"APL_UW","University of Washington, Applied Physics Laboratory",null,"SBE41_IDO_V3.0","Seabird CTD module with IDO oxygen sensor",null,null,null,null,null,null,null,null,null,null,null,null,null,81,"Sippican AXBT (300 m probes)",null,22,"CLS-ARGOS / Protecno XBT-ST Model-2",null,"VOLTAGE_DOXY","Voltage reported by oxygen sensor","-","volt","i"]
[null,null,null,"SOLO_W","Woods Hole Oceanographic Institute SOLO float",null,null,null,null,"RADIOMETER_DOWN_IRR<nnn>","Radiometer measuring downwelling irradiance at wavelength <nnn> specified in Table 3 BGC-Argo parameters list",null,"TSK","Tsurumi-Seiki Co., Ltd.",null,"SBE41CP_V1",null,null,null,null,null,null,null,null,null,null,null,null,null,null,201,"TSK T-4",null,30,"BATHY Systems SA-810",null,"FREQUENCY_DOXY","Frequency reported by oxygen sensor","-","hertz","i"]
[null,null,null,"SOLO_II","Scripps Institution of Oceanography – Instrument Development Group SOLO-II float",null,null,null,null,"RADIOMETER_PAR",null,null,"RBR","RBR Ltd",null,"SBE41CP_V1.1",null,null,null,null,null,null,null,null,null,null,null,null,null,null,202,"TSK T-4",null,31,"Scripps Metrobyte controller",null,"COUNT_DOXY","Count reported by oxygen sensor","-","dimensionless","i"]
[null,null,null,"S2A","MRV SOLOII  float",null,null,null,null,"RADIOMETER_UP_RAD<nnn>","Radiometer measuring upwelling radiance at wavelength <nnn> specified in Table 3 BGC-Argo parameters list",null,"Unknown","Unknown sensor maker",null,"SBE41CP_V1.2",null,null,null,null,null,null,null,null,null,null,null,null,null,null,211,"TSK T-6",null,32,"Murayama Denki Z-60-16 III",null,"BPHASE_DOXY","Uncalibrated phase shift reported by oxygen sensor","-","degree","i"]
[null,null,null,"SOLO_D","Scripps Institution of Oceanography – Instrument Development Group deep SOLO float",null,null,null,null,"BACKSCATTERINGMETER_BBP532","Backscattering meter measuring backscattering at wavelength <nnn> specified in Table 3 BGC-Argo parameters list",null,"KELLER",null,null,"SBE41CP_V1.2a",null,null,null,null,null,null,null,null,null,null,null,null,null,null,212,"TSK T-6",null,33,"Murayama Denki Z-60-16 II",null,"DPHASE_DOXY","Calibrated phase shift reported by oxygen sensor","-","degree","i"]
[null,null,null,"NINJA","TSK NINJA float",null,null,null,null,"BACKSCATTERINGMETER_BBP700","Backscattering meter measuring backscattering at wavelength <nnn> specified in Table 3 BGC-Argo parameters list",null,"MICRON",null,null,"SBE41CP_V1.3",null,null,null,null,null,null,null,null,null,null,null,null,null,null,221,"TSK T-7",null,34,"Protecno ETSM2",null,"TPHASE_DOXY","Uncalibrated phase shift reported by oxygen sensor","-","degree","i"]
[null,null,null,"NINJA_D","TSK NINJA deep float",null,null,null,null,"BACKSCATTERINGMETER_BBP<nnn>","Backscattering meter measuring backscattering at wavelength <nnn> specified in Table 3 BGC-Argo parameters list",null,"SEAPOINT",null,null,"SBE41CP_V1.3b",null,null,null,null,null,null,null,null,null,null,null,null,null,null,222,"TSK T-7",null,35,"Nautilus Marine Service NMS-XBT",null,"C1PHASE_DOXY","Uncalibrated phase shift reported by oxygen sensor","-","degree","i"]
[null,null,null,"NEMO","OPTIMARE NEMO float",null,null,null,null,"BACKSCATTERINGMETER_TURBIDITY",null,null,"TURNER_DESIGN",null,null,"SBE41CP_V1.4",null,null,null,null,null,null,null,null,null,null,null,null,null,null,231,"TSK T-5",null,40,"TSK MK-2A",null,"C2PHASE_DOXY","Uncalibrated phase shift reported by oxygen sensor","-","degree","i"]
[null,null,null,"NAVIS_A","Seabird NAVIS float",null,null,null,null,"SPECTROPHOTOMETER_NITRATE",null,null,null,null,null,"SBE41CP_V1.5",null,null,null,null,null,null,null,null,null,null,null,null,null,null,241,"TSK T-10",null,41,"TSK MK-2S",null,"MOLAR_DOXY","Uncompensated (pressure and salinity) oxygen concentration reported by the oxygen sensor","mole_concentration_of_dissolved_molecular_oxygen_in_sea_water","micromole/l","i"]
[null,null,null,"NOVA","METOCEAN NOVA float",null,null,null,null,"SPECTROPHOTOMETER_BISULFIDE",null,null,null,null,null,"SBE41CP_V1.7",null,null,null,null,null,null,null,null,null,null,null,null,null,null,251,"TSK Deep Blue",null,42,"TSK MK-30",null,"PHASE_DELAY_DOXY","Phase delay reported by oxygen sensor","-","microsecond","i"]
[null,null,null,"DOVA","METOCEAN DOVA float",null,null,null,null,"STS_CNDC",null,null,null,null,null,"SBE41CP_V1.8",null,null,null,null,null,null,null,null,null,null,null,null,null,null,252,"TSK Deep Blue",null,43,"TSK MK-30N",null,"MLPL_DOXY","Oxygen concentration reported by the oxygen sensor","-","ml/l","i"]
[null,null,null,"ALAMO","MRV/WHOI new float",null,null,null,null,"STS_TEMP",null,null,null,null,null,"SBE41CP_V1.9",null,null,null,null,null,null,null,null,null,null,null,null,null,null,261,"TSK Deep AXBT",null,45,"TSK MK-100",null,"NB_SAMPLE","Number of samples in bin","-","dimensionless","i"]
[null,null,null,"ITP","Ice Tethered Profiler (with modified WHOI moored profiler driven by a traction drive unit)",null,null,null,null,"TRANSISTOR_PH",null,null,null,null,null,"SBE41CP_V1.9a",null,null,null,null,null,null,null,null,null,null,null,null,null,null,401,"Sparton XBT-1",null,46,"TSK MK-100 compatible recorder for both XBT and XCTD",null,"RPHASE_DOXY","Uncalibrated red phase shift reported by oxygen sensor","-","degree","i"]
[null,null,null,"POPS_PROVOR","Polar Ocean Profiling System (with PROVOR CTS-3 float)",null,null,null,null,"TRANSMISSOMETER_CP660","Transmissometer measuring attenuation at wavelength <nnn> specified in Table 3 BGC-Argo parameters list",null,null,null,null,"SBE41CP_V2",null,null,null,null,null,null,null,null,null,null,null,null,null,null,411,"Sparton XBT-3",null,47,"TSK MK-1130A XCTD recorder",null,"BETA_BACKSCATTERING","Total angle specific volume from backscattering sensor  at x nanometers","-","count","i"]
[null,null,null,"POPS_NEMO","Polar Ocean Profiling System (with NEMO float)",null,null,null,null,"TRANSMISSOMETER_CP<nnn>","Transmissometer measuring attenuation at wavelength <nnn> specified in Table 3 BGC-Argo parameters list",null,null,null,null,"SBE41CP_V3",null,null,null,null,null,null,null,null,null,null,null,null,null,null,421,"Sparton XBT-4",null,48,"TSK AXBT receiver MK-300",null,"FLUORESCENCE_CHLA","Chlorophyll-A signal from fluorescence sensor","-","count","i"]
[null,null,null,"FLOAT","Generic value when unknown",null,null,null,null,null,null,null,null,null,null,"SBE41CP_V3.0a",null,null,null,null,null,null,null,null,null,null,null,null,null,null,431,"Sparton XBT-5",null,49,"TSK MK-150 Compatible recorder for both XBT and XCTD",null,"TEMP_CPU_CHLA","Thermistor signal from backscattering sensor","-","count","i"]
[null,null,null,null,null,null,null,null,null,null,null,null,null,null,null,"SBE41CP_V3.0c",null,null,null,null,null,null,null,null,null,null,null,null,null,null,441,"Sparton XBT-5DB",null,50,"JMA ASTOS",null,"FLUORESCENCE_CDOM","Raw fluorescence from colored dissolved organic mater sensor","-","count","i"]
[null,null,null,null,null,null,null,null,null,null,null,null,null,null,null,"SBE41CP_V4.4.0",null,null,null,null,null,null,null,null,null,null,null,null,null,null,451,"Sparton XBT-6",null,60,"ARGOS communications, sampling on up transit.",null,"SIDE_SCATTERING_TURBIDITY","Turbidity signal from side scattering sensor","-","count","i"]
[null,null,null,null,null,null,null,null,null,null,null,null,null,null,null,"SBE41CP_V5.0.1",null,null,null,null,null,null,null,null,null,null,null,null,null,null,461,"Sparton XBT-7",null,61,"ARGOS communications, sampling on down transit.",null,"TRANSMITTANCE_PARTICLE_BEAM_ATTENUATION","Beam attenuation from transmissiometer sensor at x nanometers","-","count","i"]
[null,null,null,null,null,null,null,null,null,null,null,null,null,null,null,"SBE41CP_V5.3.0",null,null,null,null,null,null,null,null,null,null,null,null,null,null,462,"Sparton XBT-7",null,62,"Orbcomm communications, sampling on up transit.",null,"UV_INTENSITY_NITRATE","Intensity of ultra violet flux from nitrate sensor","-","count","i"]
[null,null,null,null,null,null,null,null,null,null,null,null,null,null,null,"SBE41CP_V7.2.3",null,null,null,null,null,null,null,null,null,null,null,null,null,null,471,"Sparton XBT-7DB",null,63,"Orbcomm communications, sampling on down transit.",null,"UV_INTENSITY_DARK_NITRATE","Intensity of ultra violet flux dark measurement from nitrate sensor","-","count","i"]
[null,null,null,null,null,null,null,null,null,null,null,null,null,null,null,"SBE41CP_V7.2.5",null,null,null,null,null,null,null,null,null,null,null,null,null,null,481,"Sparton XBT-10",null,64,"Iridium, communications sampling on up transit",null,"UV_INTENSITY_DARK_SEAWATER_NITRATE","Intensity of ultra-violet flux dark sea water from nitrate sensor","-","count","i"]
[null,null,null,null,null,null,null,null,null,null,null,null,null,null,null,"SBE61_V4.5.2",null,null,null,null,null,null,null,null,null,null,null,null,null,null,491,"Sparton XBT-20",null,65,"Iridium communications, sampling on down transit",null,"E_NITRATE","E nitrate???","-","liter/micromol cm","i"]
[null,null,null,null,null,null,null,null,null,null,null,null,null,null,null,"SBE61_V4.5.3",null,null,null,null,null,null,null,null,null,null,null,null,null,null,501,"Sparton XBT-20DB",null,70,"CSIRO Devil-1 XBT acquisition system",null,"UV_INTENSITY_REF_NITRATE","Ultra-violet intensity reference from nitrate sensor","-","count","i"]
[null,null,null,null,null,null,null,null,null,null,null,null,null,null,null,"SBE61_V5.0.0",null,null,null,null,null,null,null,null,null,null,null,null,null,null,510,"Sparton 536 AXBT",null,71,"CSIRO Devil-2 XBT acquisition system",null,"E_SWA_NITRATE","???","-","dimensionless","i"]
[null,null,null,null,null,null,null,null,null,null,null,null,null,null,null,"SBE61_V5.0.1",null,null,null,null,null,null,null,null,null,null,null,null,null,null,700,"Sippican XCTD standard",null,80,"Applied Microsystems Ltd., MICRO-SVT&P",null,"TEMP_CAL_NITRATE","Temperature calibration from nitrate sensor","-","degree_Celsius","i"]
[null,null,null,null,null,null,null,null,null,null,null,null,null,null,null,"SBE61",null,null,null,null,null,null,null,null,null,null,null,null,null,null,710,"Sippican XCTD deep",null,81,"Sea Mammal Research Unit, Univ. St. Andrews, UK, uncorrected salinity from a sea mammal mounted instrument",null,"ABSORBANCE _COR_NITRATE","Absorbance cor??? from nitrate sensor","-","dimensionless","i"]
[null,null,null,null,null,null,null,null,null,null,null,null,null,null,null,"CTD_F01","TSK model",null,null,null,null,null,null,null,null,null,null,null,null,null,720,"Sippican AXCTD",null,82,"Sea Mammal Research Unit, Univ. St. Andrews, UK, salinity from a sea mammal mounted instrument",null,"MOLAR_NITRATE","Nitrate","-","micromole/l","i"]
[null,null,null,null,null,null,null,null,null,null,null,null,null,null,null,"RBR","RBR model",null,null,null,null,null,null,null,null,null,null,null,null,null,730,"Sippican SXCTD",null,99,"Unknown",null,"FIT_ERROR_NITRATE","Nitrate fit error","-","dimensionless","i"]
[null,null,null,null,null,null,null,null,null,null,null,null,null,null,null,"RBRoem_V1.16","RBR model",null,null,null,null,null,null,null,null,null,null,null,null,null,741,"TSK XCTD",null,127,"Missing value",null,"VRS_PH","Voltage difference between reference and source from pH sensor","-","volt","i"]
[null,null,null,null,null,null,null,null,null,null,null,null,null,null,null,"SBE43_IDO","Seabird Electrochemical Dissolved Oxygen IDO sensor (volt output)",null,null,null,null,null,null,null,null,null,null,null,null,null,742,"TSK XCTD-2 ",null,null,null,null,"PH_IN_SITU_FREE","pH","-","dimensionless","i"]
[null,null,null,null,null,null,null,null,null,null,null,null,null,null,null,"SBE43I","configuration option",null,null,null,null,null,null,null,null,null,null,null,null,null,743,"TSK XCTD-2F",null,null,null,null,"PH_IN_SITU_SEAWATER","pH","-","dimensionless","i"]
[null,null,null,null,null,null,null,null,null,null,null,null,null,null,null,"SBE43F_IDO","Seabird Electrochemical Dissolved Oxygen IDO sensor (frequency output)",null,null,null,null,null,null,null,null,null,null,null,null,null,751,"TSK AXCTD",null,null,null,null,"RAW_DOWNWELLING_IRRADIANCE","Raw downwelling irradiance at x nanometers","-","count","i"]
[null,null,null,null,null,null,null,null,null,null,null,null,null,null,null,"SBE63_OPTODE","Seabird Optical Dissolved Oxygen Sensor",null,null,null,null,null,null,null,null,null,null,null,null,null,761,"Sparton XCTD standard",null,null,null,null,"RAW_UPWELLING_RADIANCE","Raw upwelling radiance at x nanometers","-","count","i"]
[null,null,null,null,null,null,null,null,null,null,null,null,null,null,null,"AANDERAA_OPTODE",null,null,null,null,null,null,null,null,null,null,null,null,null,null,780,"Sea-Bird SBE21 SeaCAT Thermosalinograph",null,null,null,null,"RAW_DOWNWELLING_PAR","Raw downwelling photosynthetic available radiation","-","count","i"]
[null,null,null,null,null,null,null,null,null,null,null,null,null,null,null,"AANDERAA_OPTODE_3830",null,null,null,null,null,null,null,null,null,null,null,null,null,null,781,"Sea-Bird SBE45 MicroTSG Thermosalinograph"]
[null,null,null,null,null,null,null,null,null,null,null,null,null,null,null,"AANDERAA_OPTODE_3835",null,null,null,null,null,null,null,null,null,null,null,null,null,null,800,"Mechanical XBT"]
[null,null,null,null,null,null,null,null,null,null,null,null,null,null,null,"AANDERAA_OPTODE_3930",null,null,null,null,null,null,null,null,null,null,null,null,null,null,810,"Hydrocast"]
[null,null,null,null,null,null,null,null,null,null,null,null,null,null,null,"AANDERAA_OPTODE_4330",null,null,null,null,null,null,null,null,null,null,null,null,null,null,820,"Thermistor Chain"]
[null,null,null,null,null,null,null,null,null,null,null,null,null,null,null,"AANDERAA_OPTODE_4330F",null,null,null,null,null,null,null,null,null,null,null,null,null,null,825,"Temperature (sonic) and pressure probes"]
[null,null,null,null,null,null,null,null,null,null,null,null,null,null,null,"ARO_FT","JAC RINKO",null,null,null,null,null,null,null,null,null,null,null,null,null,830,"CTD"]
[null,null,null,null,null,null,null,null,null,null,null,null,null,null,null,"DRUCK_2900PSIA",null,null,null,null,null,null,null,null,null,null,null,null,null,null,831,"CTD - P-ALACE float"]
[null,null,null,null,null,null,null,null,null,null,null,null,null,null,null,"DRUCK",null,null,null,null,null,null,null,null,null,null,null,null,null,null,840,"P-ALACE float, PROVOR, no conductivity sensor"]
[null,null,null,null,null,null,null,null,null,null,null,null,null,null,null,"DRUCK_10153PSIA",null,null,null,null,null,null,null,null,null,null,null,null,null,null,841,"P-ALACE float, PROVOR, Seabird conductivity sensor"]
[null,null,null,null,null,null,null,null,null,null,null,null,null,null,null,"PAINE",null,null,null,null,null,null,null,null,null,null,null,null,null,null,842,"P-ALACE float, PROVOR, FSI conductivity sensor"]
[null,null,null,null,null,null,null,null,null,null,null,null,null,null,null,"PAINE_1500PSIA",null,null,null,null,null,null,null,null,null,null,null,null,null,null,843,"Polar Ocean Profiling System (POPS), PROVOR, SBE CTD"]
[null,null,null,null,null,null,null,null,null,null,null,null,null,null,null,"PAINE_1600PSIA",null,null,null,null,null,null,null,null,null,null,null,null,null,null,844,"Profiling Float, ARVOR, Seabird conductivity sensor"]
[null,null,null,null,null,null,null,null,null,null,null,null,null,null,null,"PAINE_2000PSIA",null,null,null,null,null,null,null,null,null,null,null,null,null,null,845,"P-ALACE float, Web Research, no conductivity sensor"]
[null,null,null,null,null,null,null,null,null,null,null,null,null,null,null,"PAINE_2900PSIA",null,null,null,null,null,null,null,null,null,null,null,null,null,null,846,"P-ALACE float, Web Research, Seabird conductivity sensor"]
[null,null,null,null,null,null,null,null,null,null,null,null,null,null,null,"PAINE_3000PSIA",null,null,null,null,null,null,null,null,null,null,null,null,null,null,847,"P-ALACE float, Web Research, FSI conductivity sensor"]
[null,null,null,null,null,null,null,null,null,null,null,null,null,null,null,"AMETEK",null,null,null,null,null,null,null,null,null,null,null,null,null,null,850,"P-ALACE float, SOLO, no conductivity sensor"]
[null,null,null,null,null,null,null,null,null,null,null,null,null,null,null,"AMETEK_3000PSIA",null,null,null,null,null,null,null,null,null,null,null,null,null,null,851,"P-ALACE float, SOLO, Seabird conductivity sensor"]
[null,null,null,null,null,null,null,null,null,null,null,null,null,null,null,"KISTLER",null,null,null,null,null,null,null,null,null,null,null,null,null,null,852,"P-ALACE float, SOLO, FSI conductivity sensor"]
[null,null,null,null,null,null,null,null,null,null,null,null,null,null,null,"KISTLER_2900PSIA",null,null,null,null,null,null,null,null,null,null,null,null,null,null,853,"Profiling Float, SOLO2 (SCRIPPS), Seabird conductivity sensor"]
[null,null,null,null,null,null,null,null,null,null,null,null,null,null,null,"KISTLER_10153PSIA",null,null,null,null,null,null,null,null,null,null,null,null,null,null,855,"Profiling float, NINJA, no conductivity sensor"]
[null,null,null,null,null,null,null,null,null,null,null,null,null,null,null,"KELLER_PA8",null,null,null,null,null,null,null,null,null,null,null,null,null,null,856,"Profiling float, NINJA, SBE conductivity sensor"]
[null,null,null,null,null,null,null,null,null,null,null,null,null,null,null,"SEASCAN_SSTD",null,null,null,null,null,null,null,null,null,null,null,null,null,null,857,"Profiling float, NINJA, FSI conductivity sensor"]
[null,null,null,null,null,null,null,null,null,null,null,null,null,null,null,"MP40_C_2000_G","MICRON",null,null,null,null,null,null,null,null,null,null,null,null,null,858,"Profiling float, NINJA, TSK conductivity sensor"]
[null,null,null,null,null,null,null,null,null,null,null,null,null,null,null,"SBE_STS","SBE Near Surface Conductivity and Temperature Module",null,null,null,null,null,null,null,null,null,null,null,null,null,859,"Profiling Float, NEMO, no conductivity"]
[null,null,null,null,null,null,null,null,null,null,null,null,null,null,null,"SUNA","UV absorption to derive nitrate and bisulfide (MBARI)",null,null,null,null,null,null,null,null,null,null,null,null,null,860,"Profiling Float, NEMO, SBE conductivity sensor"]
[null,null,null,null,null,null,null,null,null,null,null,null,null,null,null,"SUNA_V2","UV absorption to derive nitrate and bisulfide (SATLANTIC)",null,null,null,null,null,null,null,null,null,null,null,null,null,861,"Profiling Float, NEMO, FSI conductivity sensor"]
[null,null,null,null,null,null,null,null,null,null,null,null,null,null,null,"ISUS","Nitrate (MBARI)",null,null,null,null,null,null,null,null,null,null,null,null,null,865,"Metocean NOVA float"]
[null,null,null,null,null,null,null,null,null,null,null,null,null,null,null,"ISUS_V3","Nitrate (SATLANTIC)",null,null,null,null,null,null,null,null,null,null,null,null,null,869,"Metocean DOVA float"]
[null,null,null,null,null,null,null,null,null,null,null,null,null,null,null,"C_ROVER","Transmissometer (WETLABS)",null,null,null,null,null,null,null,null,null,null,null,null,null,900,"Sippican T-12 XBT"]
[null,null,null,null,null,null,null,null,null,null,null,null,null,null,null,"DURA","pH (MBARI)",null,null,null,null,null,null,null,null,null,null,null,null,null,901,"Ice-tethered Profiler (ITP), SBE CTD"]
[null,null,null,null,null,null,null,null,null,null,null,null,null,null,null,"SEAFET","pH (SATLANTIC)",null,null,null,null,null,null,null,null,null,null,null,null,null,"902-994 ","Reserved"]
[null,null,null,null,null,null,null,null,null,null,null,null,null,null,null,"SATLANTIC_OCR504_ICSW","Multispectral radiometer 4 channels (SATLANTIC) with cosine detector to measure irradiance in water (at wavelength <nnn> specified in Table 3 BGC-Argo parameters list)",null,null,null,null,null,null,null,null,null,null,null,null,null,995,"Instrument attached to marine mammals"]
[null,null,null,null,null,null,null,null,null,null,null,null,null,null,null,"SATLANTIC_OCR504_R10W","Multispectral radiometer 4 channels (SATLANTIC) with a 10° half-angle field of view to measure radiance in water (at wavelength <nnn> specified in Table 3 BGC-Argo parameters list)",null,null,null,null,null,null,null,null,null,null,null,null,null,996,"Instrument attached to animals other than marine mammals"]
[null,null,null,null,null,null,null,null,null,null,null,null,null,null,null,"SATLANTIC_OCR507_ICSW","Multispectral radiometer 7 channels (SATLANTIC) with cosine detector to measure irradiance in water (at wavelength <nnn> specified in Table 3 BGC-Argo parameters list)",null,null,null,null,null,null,null,null,null,null,null,null,null,"997-999 ","Reserved"]
[null,null,null,null,null,null,null,null,null,null,null,null,null,null,null,"SATLANTIC_OCR507_R10W","Multispectral radiometer 7 channels (SATLANTIC) with a 10° half-angle field of view to measure radiance in water (at wavelength <nnn> specified in Table 3 BGC-Argo parameters list)",null,null,null,null,null,null,null,null,null,null,null,null,null,"1000-1022","Reserved"]
[null,null,null,null,null,null,null,null,null,null,null,null,null,null,null,"SATLANTIC_OCR507_ICSWR10W","Multispectral radiometer 7 channels (SATLANTIC) combination of cosine detector to measure irradiance and a 10° half-angle field of view to measure radiance in water (at wavelength <nnn> specified in Table 3 BGC-Argo parameters list)",null,null,null,null,null,null,null,null,null,null,null,null,null,1023,"Missing value"]
[null,null,null,null,null,null,null,null,null,null,null,null,null,null,null,"ECO_BB","Wetlabs Eco optical sensor packages with one backscattering meter (at wavelength <nnn> specified in Table 3 BGC-Argo parameters list)"]
[null,null,null,null,null,null,null,null,null,null,null,null,null,null,null,"ECO_FL","Wetlabs Eco optical sensor packages with one fluorometer (type specified in SENSOR)"]
[null,null,null,null,null,null,null,null,null,null,null,null,null,null,null,"ECO_NTU","Wetlabs Eco optical sensor packages with one backscattering meter measuring turbidity"]
[null,null,null,null,null,null,null,null,null,null,null,null,null,null,null,"ECO_FLBB","Wetlabs Eco optical sensor packages with one fluorometer (type specified in SENSOR) and one backscattering meter (at wavelength <nnn> specified in Table 3 BGC-Argo parameters list)"]
[null,null,null,null,null,null,null,null,null,null,null,null,null,null,null,"ECO_FLBB_AP2","Wetlabs Eco optical sensor packages with one fluorometer (type specified in SENSOR) and one backscattering meter (wavelength specified in SENSOR) mounted on an Apex float"]
[null,null,null,null,null,null,null,null,null,null,null,null,null,null,null,"ECO_FLBB_2K","Wetlabs Eco optical sensor packages with one fluorometer (type specified in SENSOR) and one backscattering meter (at wavelength <nnn> specified in Table 3 BGC-Argo parameters list) certified for applications down to 2000m"]
[null,null,null,null,null,null,null,null,null,null,null,null,null,null,null,"ECO_FLNTU","Wetlabs Eco optical sensor packages with one fluorometer (type specified in SENSOR) and one backscattering meter measuring turbidity"]
[null,null,null,null,null,null,null,null,null,null,null,null,null,null,null,"ECO_BB2","Wetlabs Eco optical sensor packages with two backscatteringmeters (at wavelength <nnn> specified in Table 3 BGC-Argo parameters list)"]
[null,null,null,null,null,null,null,null,null,null,null,null,null,null,null,"ECO_FLBBCD","Wetlabs Eco optical sensor packages with two fluorometers (type specified in SENSOR) and one backscatteringmeter (at wavelength <nnn> specified in Table 3 BGC-Argo parameters list)"]
[null,null,null,null,null,null,null,null,null,null,null,null,null,null,null,"ECO_FLBB2","Wetlabs Eco optical sensor packages with one fluorometer (type specified in SENSOR) and two backscatteringmeters (at wavelength <nnn> specified in Table 3 BGC-Argo parameters list)"]
[null,null,null,null,null,null,null,null,null,null,null,null,null,null,null,"ECO_BB3","Wetlabs Eco optical sensor packages with 3 backscatteringmeters (at wavelength <nnn> specified in Table 3 BGC-Argo parameters list)"]
[null,null,null,null,null,null,null,null,null,null,null,null,null,null,null,"MCOMS_FLBBCD","Wetlabs MCOMS optical sensor packages with two fluorometers CHLA, CDOM and one backscatteringmeter (at wavelength <nnn> specified in Table 3 BGC-Argo parameters list)"]
[null,null,null,null,null,null,null,null,null,null,null,null,null,null,null,"MCOMS_FLBB2","Wetlabs MCOMS optical sensor packages with one fluorometer CHLA and two backscatteringmeters (wavelengths specified in SENSOR)"]
[null,null,null,null,null,null,null,null,null,null,null,null,null,null,null,"CYCLOPS_7_FLUOROMETER","Turner designs Optical sensor"]
[null,null,null,null,null,null,null,null,null,null,null,null,null,null,null,"SEAPOINT_TURBIDITY_METER","Seapoint turbidity meter"]
[null,null,null,null,null,null,null,null,null,null,null,null,null,null,null,"RAFOS","Receiver mounted on some floats for geopositioning under ice using RAFOS sound sources in the array in the Weddell Sea (Location derivation is done in Delayed Mode for under ice floats equipped with RAFOS receivers)."]
[null,null,null,null,null,null,null,null,null,null,null,null,null,null,null,"PAL_UW","UW Passive acoustic listener"]
[null,null,null,null,null,null,null,null,null,null,null,null,null,null,null,"EM","Electromagnetic sensor package to measure velocity"]

{"sheet":"Deployment file Ids ","index":2,"n_rows":17,"n_cols":3,"rows_kept":17,"cut":false,"hidden":false,"merged":[]}
["Deployment file Id","Include Coriolis decoder versions","Update date: 20170406"]
[1,"4.23, 4.51, 4.53","PROVOR CTS3.1 Argos, ARVOR Argos, ARVOR ASFAR"]
[2,"5.9, 5.91, 5.92, 6.01","PROVOR CTS4 (Remocean)"]
[3,"4.42, 4.44, 4.45","PROVOR CTS3.1 - DO Argos"]
[4,"5.7, 5.71, 5.72","PROVOR CTS3 - DO Iridium"]
[5,"5.4, 5.41, 5.42","ARVOR Iridium"]
[6,4.5199999999999996,"ARVOR ARN (NAOS 2013) Argos"]
[7,"5.6, 5.61, 5.62, 5.63","ARVOR Deep"]
[8,"UNUSED","UNUSED"]
[9,4.54,"ARVOR-DO ARN (NAOS 2013) Argos"]
[10,"5.43, 5.44","ARVOR ARN (NAOS 2013) Iridium (firmware: 5900A00, 5900A01)"]
[11,5.74,"PROVOR CTS3 - DO Iridium (ARVOR 5.44 firmware + additional stick for the optode) (firmware: 5900A02)"]
[12,7.01,"PROVOR CTS5"]
[13,5.45,"ARVOR Iridium CTD + Ice detection (firmware: 5900A03)"]
[101,"all APEX Argos with a CTD only","APEX Argos CTD"]
[201,"1.0","NOVA"]
[202,"2.0","DOVA"]